fUSD/lending_fUSD_20250309
["ID","MTS","AMOUNT","RATE_DAILY","PERIOD"]
[355747938,1741528233379,-7476.08,9.103e-05,2]
[355747939,1741528233391,-500.0,9.103e-05,2]
[355747940,1741528233402,-1074.35,9.103e-05,2]
[355747941,1741528233413,-785.26,9.103e-05,2]
[355747942,1741528233424,-500.0,9.103e-05,2]
[355747943,1741528233435,-773.18,9.103e-05,2]
[355747944,1741528233444,-1021.51,9.103e-05,2]
[355747945,1741528233456,-500.0,9.103e-05,2]
[355747946,1741528233723,-795.57,9.103e-05,2]
[355747947,1741528233734,-598.33,9.103e-05,2]
[355747948,1741528233745,-244.16238173,9.103e-05,2]
[355747949,1741528233758,-500.0,9.103e-05,2]
[355747950,1741528233769,-855.88,9.103e-05,2]
[355747951,1741528233780,-714.13,9.103e-05,2]
[355747952,1741528233792,-3018.31,9.103e-05,2]
[355747953,1741528233803,-502.82,9.103e-05,2]
[355747954,1741528233813,-500.0,9.103e-05,2]
[355747955,1741528233822,-2311.76,9.103e-05,2]
[355747956,1741528233832,-500.0,9.103e-05,2]
[355747957,1741528233843,-255.12539878,9.103e-05,2]
[355747958,1741528233854,-500.0,9.103e-05,2]
[355747959,1741528233865,-3785.0,9.103e-05,2]
[355747960,1741528233880,-500.0,9.103e-05,2]
[355747961,1741528233891,-500.0,9.103e-05,2]
[355747962,1741528233901,-500.0,9.103e-05,2]
[355747963,1741528233911,-500.0,9.103e-05,2]
[355747964,1741528233920,-56739.62380135,9.104e-05,2]
[355747965,1741528233948,-514.53413072,9.104e-05,2]
[355747966,1741528233961,-1886.38084821,9.104e-05,2]
[355747967,1741528233974,-337.55144945,9.104e-05,2]
[355747968,1741528233994,-415.09721781,9.104e-05,2]
[355747969,1741528234008,-308.807424,9.104e-05,2]
[355747992,1741528237566,-468.30365303,9.103e-05,2]
[355748005,1741528237711,-31.69634697,9.103e-05,2]
[355748006,1741528237722,-340.51130489,9.103e-05,2]
[355748007,1741528237793,-322.63869511,9.103e-05,2]
[355748008,1741528237804,-500.0,9.103e-05,2]
[355748009,1741528237814,-22680.03119891,9.104e-05,2]
[355748010,1741528237826,-118788.55550354,9.104e-05,2]
[355748011,1741528237907,-16935.05625303,9.104e-05,2]
[355748026,1741528239637,-3472.18200117,9.104e-05,2]
[355748027,1741528239654,-260.92168126,9.104e-05,2]
[355748028,1741528239667,-358.02733147,9.104e-05,2]
[355748029,1741528239680,-9096.64373114,9.104e-05,2]
[355748030,1741528239691,-8947.21879473,9.104e-05,2]
[355748031,1741528239704,-8943.78386462,9.104e-05,2]
[355748032,1741528239716,-9077.54866152,9.104e-05,2]
[355748033,1741528239728,-8943.84023489,9.104e-05,2]
[355748034,1741528239750,-12564.443164,9.104e-05,2]
[355748035,1741528239875,-2806.18425807,9.104e-05,2]
[355748036,1741528239973,-92980.72801528,9.104e-05,2]
[355748037,1741528239990,-570.67730499,9.104e-05,2]
[355748038,1741528240000,-4849.11,9.104e-05,2]
[355748039,1741528240010,-96673.77,9.104e-05,2]
[355748040,1741528240022,-352.98914655,9.109e-05,2]
[355748041,1741528240036,-2223.40366112,9.109e-05,2]
[355748042,1741528240048,-4692.12659611,9.109e-05,2]
[355748043,1741528240058,-150.0,9.11e-05,2]
[355748044,1741528240067,-2032.0,9.141e-05,2]
[355748045,1741528240077,-1278.0,9.141e-05,2]
[355748046,1741528240087,-150.793,9.141e-05,2]
[355748047,1741528240096,-641.0,9.141e-05,2]
[355748049,1741528240107,-1459.0,9.141e-05,2]
[355748050,1741528240117,-571.0,9.141e-05,2]
[355748052,1741528240130,-786.0,9.141e-05,2]
[355748053,1741528240140,-541.0,9.141e-05,2]
[355748054,1741528240150,-907.0,9.141e-05,2]
[355748055,1741528240160,-1434.233,9.141e-05,2]
[355748056,1741528240170,-1270.0,9.141e-05,2]
[355748057,1741528240179,-4213.971,9.141e-05,2]
[355748058,1741528240189,-277.308,9.141e-05,2]
[355748059,1741528240198,-735.55657789,9.141e-05,2]
[355748061,1741528240211,-276.44342211,9.141e-05,2]
[355748062,1741528240221,-160.843,9.141e-05,2]
[355748063,1741528240231,-193.71,9.141e-05,2]
[355748064,1741528240242,-3932.0,9.141e-05,2]
[355748065,1741528240252,-150.0,9.141e-05,2]
[355748066,1741528240262,-569.68540253,9.168e-05,2]
[355748067,1741528240271,-150.602,9.174e-05,2]
[355748068,1741528240281,-260.96,9.174e-05,2]
[355748069,1741528240291,-200.824,9.174e-05,2]
[355748070,1741528240301,-150.075,9.174e-05,2]
[355748071,1741528240311,-150.0,9.174e-05,2]
[355748072,1741528240321,-180.591,9.174e-05,2]
[355748073,1741528240330,-253.944,9.174e-05,2]
[355748074,1741528240340,-171.061,9.174e-05,2]
[355748075,1741528240350,-2450.30117536,9.178e-05,2]
[355748112,1741528242692,-265.49,8.359e-05,2]
[355748114,1741528242703,-13662.69882464,9.178e-05,2]
[355748115,1741528242713,-30373.71976961,9.194e-05,2]
[355748117,1741528242725,-1036.93991031,9.194e-05,2]
[355748118,1741528242736,-317.92,9.194e-05,2]
[355748119,1741528242748,-1177.65149977,9.194e-05,2]
[355748120,1741528242759,-1302.1840501,9.194e-05,2]
[355748121,1741528242771,-1383.36947504,9.194e-05,2]
[355748122,1741528242783,-663.79999999,9.194e-05,2]
[355748123,1741528242794,-2696.34736523,9.194e-05,2]
[355748124,1741528242806,-673.3310658,9.194e-05,2]
[355748125,1741528242828,-374.73686415,9.194e-05,2]
[355748126,1741528242838,-604.79948188,9.199e-05,3]
[355748127,1741528242847,-1741.94385397,9.199e-05,2]
[355748128,1741528242897,-14.78614603,9.199e-05,2]
[355748129,1741528242906,-234.62280745,9.199e-05,2]
[355748130,1741528242916,-650.69679231,9.2e-05,2]
[355748131,1741528242929,-1238.30320769,9.2e-05,2]
[355748132,1741528242939,-116937.86790937,9.2e-05,2]
[355748133,1741528242948,-83035.13647481,9.2e-05,2]
[355748134,1741528242979,-15014.80211972,9.2e-05,2]
[355748135,1741528242993,-7556.2988179,9.2e-05,2]
[355748136,1741528243005,-9000.0,9.2e-05,2]
[355748137,1741528243017,-749.65986822,9.2e-05,2]
[355748150,1741528245397,-6881.81807237,9.2e-05,2]
[355748152,1741528245408,-7563.91424845,9.2e-05,2]
[355748155,1741528245507,-845.46462,9.2e-05,2]
[355748214,1741528245832,-558.85127055,9.2e-05,2]
[355748216,1741528245843,-434.760005,9.2e-05,2]
[355748219,1741528245859,-458.49768389,9.2e-05,2]
[355748221,1741528245872,-232450.1534572,9.2e-05,2]
[355748222,1741528245886,-169904.24178464,9.2e-05,2]
[355748223,1741528245898,-99355.39483189,9.2e-05,2]
[355748224,1741528245910,-489557.49763639,9.2e-05,2]
[355748225,1741528245921,-13593.05,9.2e-05,2]
[355748226,1741528245934,-500.0,9.2e-05,2]
[355748227,1741528245947,-568.73889,9.2e-05,2]
[355748228,1741528245958,-5004.8703576,9.2e-05,2]
[355748362,1741528508519,418.26269804,0.00028,120]
[355748363,1741528607809,-1382.7,8.219e-05,2]
[355748364,1741528607835,-917.3,8.272e-05,2]
[355748365,1741528929377,10713.07942677,0.00026668,120]
[355748367,1741529194028,2038.24,0.00026668,30]
[355748379,1741529316753,-510.68,8.198e-05,2]
[355748380,1741529316800,-150.68,8.247e-05,2]
[355748381,1741529316845,-82.7,8.272e-05,2]
[355748382,1741529316891,-249.30141142,8.272e-05,2]
[355748383,1741529316936,-500.0,8.466e-05,2]
[355748384,1741529316985,-150.68,8.495e-05,2]
[355748385,1741529317278,-276.69528851,8.63e-05,2]
[355748677,1741529366710,-1313.56,8.219e-05,2]
[355748678,1741529366754,-167.54,8.472e-05,2]
[355748679,1741529366795,-162.2632069,8.63e-05,2]
[355748731,1741529431887,-61.04150459,8.63e-05,2]
[355748732,1741529431896,-150.68,8.742e-05,2]
[355748733,1741529431907,-182.69,8.763e-05,2]
[355748734,1741529431918,-500.0,8.849e-05,2]
[355748735,1741529431927,-1000.0,8.9e-05,2]
[355748736,1741529431937,-1000.0,9e-05,2]
[355748737,1741529431946,-6754.894,9.003e-05,2]
[355748738,1741529431955,-300.0,9.039e-05,2]
[355748739,1741529431965,-240.99,9.04e-05,2]
[355748740,1741529431974,-3743.71,9.04e-05,2]
[355748741,1741529431983,-330.41,9.04e-05,2]
[355748742,1741529431993,-150.99,9.04e-05,2]
[355748743,1741529432002,-999.99,9.04e-05,2]
[355748744,1741529432013,-7037.88,9.04e-05,2]
[355748745,1741529432022,-150.0,9.041e-05,2]
[355748746,1741529432032,-550.0,9.041e-05,2]
[355748747,1741529432041,-1012.0,9.094e-05,2]
[355748748,1741529432050,-3932.0,9.094e-05,2]
[355748749,1741529432059,-150.0,9.094e-05,2]
[355748750,1741529432069,-150.0,9.099e-05,2]
[355748751,1741529432079,-3032.121086,9.1e-05,2]
[355748752,1741529432088,-947.49,9.1e-05,2]
[355748753,1741529432097,-3098.233,9.102e-05,2]
[355748754,1741529432107,-169.569,9.102e-05,2]
[355748755,1741529432116,-500.0,9.103e-05,2]
[355748756,1741529432126,-500.00000034,9.103e-05,2]
[355748757,1741529432135,-500.0,9.103e-05,2]
[355748758,1741529432145,-500.0,9.103e-05,2]
[355748759,1741529432155,-500.0,9.103e-05,2]
[355748760,1741529432164,-1035.61,9.103e-05,2]
[355748761,1741529432173,-500.0,9.103e-05,2]
[355748762,1741529432183,-579.36,9.103e-05,2]
[355748763,1741529432193,-995.57967946,9.141e-05,2]
[355748764,1741529432202,-1278.0,9.151e-05,2]
[355748765,1741529432212,-2032.0,9.151e-05,2]
[355748766,1741529432222,-571.0,9.151e-05,2]
[355748768,1741529432231,-150.0,9.151e-05,2]
[355748790,1741529432455,-641.0,9.151e-05,2]
[355748793,1741529432465,-1459.0,9.151e-05,2]
[355748794,1741529432475,-786.0,9.151e-05,2]
[355748796,1741529432485,-1456.296,9.151e-05,2]
[355748798,1741529432494,-907.0,9.151e-05,2]
[355748800,1741529432504,-1270.0,9.151e-05,2]
[355748802,1741529432513,-541.0,9.151e-05,2]
[355748804,1741529432523,-4076.0,9.151e-05,2]
[355748806,1741529432532,-4532.6889769,9.194e-05,2]
[355748808,1741529432542,-982.4487408,9.194e-05,2]
[355748810,1741529432551,-4476.1225968,9.194e-05,2]
[355748812,1741529432560,-370.2639307,9.194e-05,2]
[355748814,1741529432570,-769.5407974,9.194e-05,2]
[355748816,1741529432579,-1766.0132992,9.194e-05,2]
[355748818,1741529432589,-63759.32173214,9.198e-05,2]
[355748820,1741529432598,-874.98,9.198e-05,2]
[355748822,1741529432607,-872.91,9.198e-05,2]
[355748824,1741529432616,-1076.37,9.198e-05,2]
[355748826,1741529432626,-583.08,9.198e-05,2]
[355748828,1741529432635,-1832.34,9.198e-05,2]
[355748830,1741529432644,-1433.72,9.198e-05,2]
[355748832,1741529432656,-1443.84,9.198e-05,2]
[355748834,1741529432665,-500.0,9.198e-05,2]
[355748836,1741529432676,-931.63,9.198e-05,2]
[355748838,1741529432685,-505.71,9.198e-05,2]
[355748840,1741529432695,-2335.43,9.198e-05,2]
[355748842,1741529432705,-1560.52,9.198e-05,2]
[355748844,1741529432714,-1481.15,9.198e-05,2]
[355748845,1741529432724,-931.5,9.198e-05,2]
[355748847,1741529432734,-770.28,9.198e-05,2]
[355748850,1741529432744,-1774.17,9.198e-05,2]
[355748851,1741529432754,-1029.59,9.198e-05,2]
[355748853,1741529432764,-868.08,9.198e-05,2]
[355748856,1741529432773,-978.95,9.198e-05,2]
[355748857,1741529432783,-544.23,9.198e-05,2]
[355748859,1741529432793,-3627.3,9.198e-05,2]
[355748861,1741529432803,-500.0,9.198e-05,2]
[355748863,1741529432812,-500.0,9.198e-05,2]
[355748865,1741529432822,-500.0,9.198e-05,2]
[355748866,1741529432832,-500.0,9.198e-05,2]
[355748867,1741529432842,-866.87,9.198e-05,2]
[355748868,1741529432850,-1130.79,9.198e-05,2]
[355748869,1741529432858,-200.59912293,9.199e-05,3]
[355748871,1741529432867,-1519.57916483,9.199e-05,3]
[355748872,1741529432879,-247.14859277,9.199e-05,2]
[355748873,1741529432888,-500.0,9.199e-05,2]
[355748874,1741529432898,-500.0,9.199e-05,2]
[355748875,1741529432911,-197.68984309,9.199e-05,2]
[355748876,1741529432921,-500.0,9.199e-05,2]
[355748877,1741529432930,-173.00401494,9.199e-05,2]
[355748878,1741529432940,-500.0,9.199e-05,2]
[355748879,1741529432949,-500.0,9.199e-05,2]
[355748880,1741529432958,-500.0,9.199e-05,2]
[355748881,1741529432969,-417.45177759,9.199e-05,2]
[355748882,1741529432979,-635.52,9.199e-05,2]
[355748883,1741529432988,-500.0,9.199e-05,2]
[355748884,1741529432998,-500.0,9.199e-05,2]
[355748885,1741529433008,-500.0,9.199e-05,2]
[355748886,1741529433018,-500.0,9.199e-05,2]
[355748887,1741529433027,-500.0,9.199e-05,2]
[355748888,1741529433036,-500.0,9.199e-05,2]
[355748889,1741529433046,-339.14446603,9.199e-05,2]
[355748890,1741529433056,-500.0,9.199e-05,2]
[355748891,1741529433065,-240.16475687,9.199e-05,2]
[355748892,1741529433075,-414.86522254,9.199e-05,2]
[355748893,1741529433084,-500.0,9.199e-05,2]
[355748894,1741529433094,-500.0,9.199e-05,2]
[355748895,1741529433103,-500.0,9.199e-05,2]
[355748896,1741529433113,-1683.53,9.199e-05,2]
[355748897,1741529433123,-500.0,9.199e-05,2]
[355748898,1741529433132,-376.64481912,9.199e-05,2]
[355748899,1741529433142,-550.58,9.199e-05,2]
[355748900,1741529433152,-541.58,9.199e-05,2]
[355748901,1741529433162,-500.0,9.199e-05,2]
[355748902,1741529433172,-707.1,9.199e-05,2]
[355748903,1741529433182,-500.0,9.199e-05,2]
[355748904,1741529433192,-500.0,9.199e-05,2]
[355748905,1741529433205,-576.45,9.199e-05,2]
[355748906,1741529433215,-602.23,9.199e-05,2]
[355748907,1741529433226,-500.0,9.199e-05,2]
[355748908,1741529433236,-500.0,9.199e-05,2]
[355748909,1741529433246,-500.0,9.199e-05,2]
[355748910,1741529433255,-521.68,9.199e-05,2]
[355748911,1741529433266,-500.0,9.199e-05,2]
[355748912,1741529433275,-500.0,9.199e-05,2]
[355748913,1741529433285,-500.0,9.199e-05,2]
[355748914,1741529433295,-500.0,9.199e-05,2]
[355748915,1741529433304,-556.83,9.199e-05,2]
[355748916,1741529433314,-500.0,9.199e-05,2]
[355748917,1741529433324,-500.0,9.199e-05,2]
[355748918,1741529433334,-502.01,9.199e-05,2]
[355748919,1741529433344,-500.0,9.199e-05,2]
[355748920,1741529433354,-500.0,9.199e-05,2]
[355748921,1741529433365,-859.25,9.199e-05,2]
[355748922,1741529433380,-500.0,9.199e-05,2]
[355748923,1741529433393,-2892.55,9.199e-05,2]
[355748924,1741529433405,-641.54,9.199e-05,2]
[355748925,1741529433415,-1146.41,9.199e-05,2]
[355748926,1741529433425,-2236.27,9.199e-05,2]
[355748927,1741529433435,-217.94852235,9.199e-05,2]
[355748928,1741529433444,-500.0,9.199e-05,2]
[355748929,1741529433456,-500.0,9.199e-05,2]
[355748930,1741529433468,-500.0,9.199e-05,2]
[355748931,1741529433478,-948.75,9.199e-05,2]
[355748932,1741529433488,-985.6,9.199e-05,2]
[355748933,1741529433497,-1474.54,9.199e-05,2]
[355748934,1741529433506,-223.356434,9.199e-05,2]
[355748935,1741529433516,-500.0,9.199e-05,2]
[355748936,1741529433526,-6355.28,9.199e-05,2]
[355748937,1741529433536,-2154.18,9.199e-05,2]
[355748938,1741529433545,-2539.83,9.199e-05,2]
[355748939,1741529433555,-500.0,9.199e-05,2]
[355748940,1741529433564,-402.853993,9.199e-05,2]
[355748941,1741529433573,-1538.0,9.199e-05,2]
[355748942,1741529433583,-707.99,9.199e-05,2]
[355748943,1741529433592,-1574.78,9.199e-05,2]
[355748944,1741529433601,-500.0,9.199e-05,2]
[355748945,1741529433611,-1099.97,9.199e-05,2]
[355748946,1741529433620,-500.0,9.199e-05,2]
[355748947,1741529433630,-500.0,9.199e-05,2]
[355748948,1741529433640,-506.54,9.199e-05,2]
[355748949,1741529433650,-500.0,9.199e-05,2]
[355748950,1741529433660,-1360.02,9.199e-05,2]
[355748951,1741529433670,-1259.59,9.199e-05,2]
[355748952,1741529433680,-500.0,9.199e-05,2]
[355748953,1741529433690,-500.0,9.199e-05,2]
[355748954,1741529433699,-667.83,9.199e-05,2]
[355748955,1741529433709,-651.52,9.199e-05,2]
[355748956,1741529433719,-624.79,9.199e-05,2]
[355748957,1741529433728,-1302.83,9.199e-05,2]
[355748958,1741529433738,-1074.86,9.199e-05,2]
[355748959,1741529433747,-1406.2,9.199e-05,2]
[355748960,1741529433756,-679.29,9.199e-05,2]
[355748961,1741529433766,-970.87,9.199e-05,2]
[355748962,1741529433775,-1097.5,9.199e-05,2]
[355748963,1741529433785,-799.91,9.199e-05,2]
[355748964,1741529433794,-835.51,9.199e-05,2]
[355748965,1741529433804,-500.0,9.199e-05,2]
[355748966,1741529433814,-1703.23,9.199e-05,2]
[355748967,1741529433823,-889.82,9.199e-05,2]
[355748968,1741529433833,-2111.71,9.199e-05,2]
[355748969,1741529433843,-500.0,9.199e-05,2]
[355748970,1741529433852,-1035.53,9.199e-05,2]
[355748971,1741529433862,-500.0,9.199e-05,2]
[355748972,1741529433871,-500.0,9.199e-05,2]
[355748973,1741529433882,-400.58374119,9.199e-05,2]
[355748974,1741529433892,-12656.97,9.199e-05,2]
[355748975,1741529433902,-1021.46,9.199e-05,2]
[355748976,1741529433912,-1851.32,9.199e-05,2]
[355748977,1741529433922,-2917.33,9.199e-05,2]
[355748978,1741529433931,-500.0,9.199e-05,2]
[355748979,1741529433942,-500.0,9.199e-05,2]
[355748980,1741529433951,-500.0,9.199e-05,2]
[355748981,1741529433961,-1474.28,9.199e-05,2]
[355748982,1741529433971,-880.0,9.199e-05,2]
[355748983,1741529433980,-500.0,9.199e-05,2]
[355748984,1741529433990,-956.12,9.199e-05,2]
[355748985,1741529433999,-210.43155151,9.199e-05,2]
[355748986,1741529434009,-569.8,9.199e-05,2]
[355748987,1741529434019,-4861.15,9.199e-05,2]
[355748988,1741529434028,-950.44,9.199e-05,2]
[355748989,1741529434039,-602.12,9.199e-05,2]
[355748990,1741529434048,-542.90272084,9.199e-05,2]
[355748991,1741529434058,-500.0,9.199e-05,2]
[355748992,1741529434068,-678.95,9.199e-05,2]
[355748993,1741529434077,-623.87,9.199e-05,2]
[355748994,1741529434087,-500.0,9.199e-05,2]
[355748995,1741529434098,-665.2,9.199e-05,2]
[355748996,1741529434108,-881.52,9.199e-05,2]
[355748997,1741529434118,-500.0,9.199e-05,2]
[355748998,1741529434127,-567.14,9.199e-05,2]
[355748999,1741529434136,-1444.48,9.199e-05,2]
[355749000,1741529434146,-500.0,9.199e-05,2]
[355749001,1741529434156,-1421.44,9.199e-05,2]
[355749002,1741529434167,-500.0,9.199e-05,2]
[355749003,1741529434176,-752.54,9.199e-05,2]
[355749004,1741529434186,-500.0,9.199e-05,2]
[355749005,1741529434196,-7164.58,9.199e-05,2]
[355749006,1741529434206,-684.37,9.199e-05,2]
[355749007,1741529434216,-500.0,9.199e-05,2]
[355749008,1741529434225,-2231.0,9.2e-05,2]
[355749009,1741529434236,-144978.086491,9.2e-05,2]
[355749010,1741529434279,-319.0,9.2e-05,2]
[355749011,1741529434291,-252.252,9.2e-05,2]
[355749012,1741529434303,-36123.72140587,9.2e-05,2]
[355749013,1741529434314,-25451.3702563,9.2e-05,2]
[355749014,1741529434334,-1016.3780846,9.2e-05,2]
[355749015,1741529434346,-894.064039,9.2e-05,2]
[355749016,1741529434375,-147614.53301282,9.2e-05,2]
[355749017,1741529434387,-341.92477841,9.2e-05,2]
[355749018,1741529434398,-83849.28396927,9.2e-05,2]
[355749019,1741529434413,-254.00375,9.2e-05,2]
[355749031,1741529437711,-823.45,9.199e-05,2]
[355749032,1741529437721,-1935.12675,9.2e-05,2]
[355749033,1741529437732,-8396.4,9.2e-05,2]
[355749034,1741529437913,-316.01150826,9.2e-05,2]
[355749035,1741529437925,-4319.565,9.2e-05,2]
[355749036,1741529438011,-684.48677169,9.198e-05,2]
[355749048,1741529439873,-260.04322831,9.198e-05,2]
[355749049,1741529439884,-609.04,9.198e-05,2]
[355749050,1741529439895,-43.06227169,9.198e-05,2]
[355749051,1741529439909,-384.23226369,9.198e-05,2]
[355749052,1741529439922,-72.70546462,9.198e-05,2]
[355749053,1741529439933,-2143.09,9.199e-05,2]
[355749054,1741529439943,-500.0,9.199e-05,2]
[355749055,1741529439953,-272225.46275324,9.2e-05,2]
[355749056,1741529439963,-4450074.60961014,9.2e-05,2]
[355749057,1741529439972,-154512.73224016,9.2e-05,2]
[355749058,1741529439981,-389425.79891626,9.2e-05,2]
[355749059,1741529439991,-151.0,9.2e-05,2]
[355749060,1741529440000,-151.0,9.2e-05,2]
[355749061,1741529440010,-151.0,9.2e-05,2]
[355749062,1741529440020,-151.0,9.2e-05,2]
[355749063,1741529440030,-151.0,9.2e-05,2]
[355749064,1741529440040,-151.0,9.2e-05,2]
[355749065,1741529440050,-151.0,9.2e-05,2]
[355749066,1741529440060,-151.0,9.2e-05,2]
[355749067,1741529440070,-290.162898,9.2e-05,2]
[355749068,1741529440079,-169.080093,9.2e-05,2]
[355749069,1741529440088,-169.080093,9.2e-05,2]
[355749070,1741529440097,-169.080093,9.2e-05,2]
[355749071,1741529440106,-169.080093,9.2e-05,2]
[355749072,1741529440116,-169.080093,9.2e-05,2]
[355749073,1741529440126,-169.080093,9.2e-05,2]
[355749074,1741529440136,-169.080093,9.2e-05,2]
[355749075,1741529440145,-169.080093,9.2e-05,2]
[355749076,1741529440158,-151.0,9.2e-05,2]
[355749077,1741529440168,-151.0,9.2e-05,2]
[355749078,1741529440178,-151.0,9.2e-05,2]
[355749079,1741529440187,-151.0,9.2e-05,2]
[355749080,1741529440199,-161.116249,9.2e-05,2]
[355749081,1741529440209,-151.0,9.2e-05,2]
[355749082,1741529440219,-151.0,9.2e-05,2]
[355749083,1741529440228,-151.0,9.2e-05,2]
[355749084,1741529440238,-151.0,9.2e-05,2]
[355749085,1741529440248,-151.0,9.2e-05,2]
[355749086,1741529440259,-151.0,9.2e-05,2]
[355749087,1741529440268,-151.0,9.2e-05,2]
[355749088,1741529440279,-151.0,9.2e-05,2]
[355749089,1741529440289,-151.0,9.2e-05,2]
[355749090,1741529440299,-151.0,9.2e-05,2]
[355749091,1741529440309,-151.0,9.2e-05,2]
[355749092,1741529440319,-151.0,9.2e-05,2]
[355749093,1741529440329,-151.0,9.2e-05,2]
[355749094,1741529440338,-151.0,9.2e-05,2]
[355749095,1741529440348,-151.0,9.2e-05,2]
[355749096,1741529440358,-151.0,9.2e-05,2]
[355749097,1741529440368,-151.0,9.2e-05,2]
[355749098,1741529440381,-189.143787,9.2e-05,2]
[355749099,1741529440390,-189.143787,9.2e-05,2]
[355749100,1741529440400,-151.0,9.2e-05,2]
[355749101,1741529440411,-151.0,9.2e-05,2]
[355749102,1741529440421,-210.15445,9.2e-05,2]
[355749104,1741529440430,-210.15445,9.2e-05,2]
[355749106,1741529440439,-151.0,9.2e-05,2]
[355749108,1741529440449,-207.841671,9.2e-05,2]
[355749110,1741529440459,-207.841671,9.2e-05,2]
[355749112,1741529440468,-151.0,9.2e-05,2]
[355749114,1741529440478,-151.0,9.2e-05,2]
[355749115,1741529440487,-151.0,9.2e-05,2]
[355749116,1741529440496,-151.0,9.2e-05,2]
[355749117,1741529440506,-151.0,9.2e-05,2]
[355749118,1741529440516,-151.0,9.2e-05,2]
[355749119,1741529440525,-151.0,9.2e-05,2]
[355749120,1741529440539,-151.0,9.2e-05,2]
[355749121,1741529440548,-151.0,9.2e-05,2]
[355749122,1741529440558,-151.0,9.2e-05,2]
[355749123,1741529440567,-151.0,9.2e-05,2]
[355749124,1741529440576,-160.265915,9.2e-05,2]
[355749125,1741529440586,-151.0,9.2e-05,2]
[355749126,1741529440596,-151.0,9.2e-05,2]
[355749127,1741529440606,-151.0,9.2e-05,2]
[355749128,1741529440615,-151.0,9.2e-05,2]
[355749129,1741529440626,-151.0,9.2e-05,2]
[355749130,1741529440636,-4657.411521,9.2e-05,2]
[355749131,1741529440645,-4657.411521,9.2e-05,2]
[355749132,1741529440657,-151.0,9.2e-05,2]
[355749133,1741529440667,-151.0,9.2e-05,2]
[355749134,1741529440676,-689.72737571,9.2e-05,2]
[355749135,1741529440686,-185.575981,9.2e-05,2]
[355749136,1741529440696,-185.575981,9.2e-05,2]
[355749137,1741529440706,-199.926331,9.2e-05,2]
[355749138,1741529440715,-199.926331,9.2e-05,2]
[355749139,1741529440725,-151.0,9.2e-05,2]
[355749140,1741529440735,-151.0,9.2e-05,2]
[355749141,1741529440744,-151.0,9.2e-05,2]
[355749142,1741529440753,-160.666521,9.2e-05,2]
[355749143,1741529440763,-160.666521,9.2e-05,2]
[355749144,1741529440774,-151.0,9.2e-05,2]
[355749145,1741529440784,-151.0,9.2e-05,2]
[355749146,1741529440794,-1143.047093,9.2e-05,2]
[355749147,1741529440803,-1143.047093,9.2e-05,2]
[355749148,1741529440813,-151.0,9.2e-05,2]
[355749149,1741529440823,-151.0,9.2e-05,2]
[355749150,1741529440832,-151.0,9.2e-05,2]
[355749151,1741529440842,-151.0,9.2e-05,2]
[355749152,1741529440851,-151.0,9.2e-05,2]
[355749154,1741529440860,-160.26649,9.2e-05,2]
[355749156,1741529440869,-160.26649,9.2e-05,2]
[355749158,1741529440878,-151.0,9.2e-05,2]
[355749160,1741529440888,-689.39343176,9.2e-05,2]
[355749162,1741529440898,-200.747536,9.2e-05,2]
[355749163,1741529440908,-151.0,9.2e-05,2]
[355749164,1741529440918,-200.747536,9.2e-05,2]
[355749165,1741529440928,-36857.50597419,9.2e-05,2]
[355749166,1741529440937,-151.0,9.2e-05,2]
[355749167,1741529440947,-151.0,9.2e-05,2]
[355749168,1741529440957,-504.62455273,9.223e-05,2]
[355749169,1741529440967,-271.8316147,9.223e-05,2]
[355749170,1741529440976,-510.68,9.223e-05,2]
[355749171,1741529440985,-151.0,9.244e-05,2]
[355749172,1741529440994,-169.080093,9.244e-05,2]
[355749173,1741529441003,-169.080093,9.244e-05,2]
[355749174,1741529441012,-151.0,9.244e-05,2]
[355749175,1741529441021,-151.0,9.244e-05,2]
[355749176,1741529441031,-151.0,9.244e-05,2]
[355749177,1741529441041,-151.0,9.244e-05,2]
[355749178,1741529441050,-151.0,9.244e-05,2]
[355749179,1741529441061,-167.197137,9.244e-05,2]
[355749180,1741529441071,-167.197137,9.244e-05,2]
[355749181,1741529441081,-336.759154,9.244e-05,2]
[355749182,1741529441091,-336.759154,9.244e-05,2]
[355749183,1741529441102,-151.0,9.244e-05,2]